Workbook

Sheet Description
B2: This workbook illustrates the calculation of the Risk-Based Capital and the RBC ratio for a life insurance company. In actual practice, the determination of the Risk-Based Capital and the RBC ratio is considerably more complicated. The table below gives a brief description of the major worksheets in this workbook. See Chapter 29 for a more detailed description of this workbook.
B6: Primary Worksheets in this Workbook
B7: Worksheet | C7: Primary Role | D7: Brief Description
B8: RBC Factors | C8: Data Entry | D8: Specifies the risk-based capital factors for various data elements
B9: RBC Data | C9: Data Entry | D9: Specifies the data elements used in risk-based capital formula
B10: Risk-Based Capital Ratio | C10: Output | D10: Shows calculation of Risk-Based Capital Ratio
B11: Asset Risk (C-1) | C11: Output | D11: Shows calculation of Asset Risk (C-1)
B12: Insurance Risk (C-2) | C12: Output | D12: Shows calculation of Insurance Risk (C-2)
B13: Interest Rate Risk (C-3) | C13: Output | D13: Shows calculation of Interest Rate and Market Risk (C-3)
B14: Business Risk (C-4) | C14: Output | D14: Shows calculation of Business Risk (C-4)
B15: Bond Size Factor | C15: Output | D15: Shows calculation of bond size adjustment factor
B16: Asset Concentration Factor | C16: Output | D16: Shows calculation of asset concentration factor
B17: Covariance Adjustment | C17: Output | D17: Shows calculation of covariance adjustment
B18: Total Adjusted Capital | C18: Output | D18: Shows calculation of Total Adjusted Capital
B21: Note:
B22: 1. Yellow tabs denote data entry worksheets.
B23: 2. Yellow cells within the data entry worksheets indicate where data can be entered.
B25: This model (i.e., workbook) is for educational purposes only and assumes that the user has a general understanding of how models are used for pricing, financial reporting, and risk management. It does not have all the functionality of a model that would be used for cash flow testing, principle-based valuations, or risk management. ©2018 Louis J. Lombardi

Sheet RBC Factors
B2: RBC Factors
C5: RBC Factors
B6: C-1 Asset Risk - Other | C6: Before Tax | D6: * | E6: Tax Rate | F6: = | G6: After Tax
B7: Bonds
B8: Government | C8: 0 | E8: 0.2625 | G8: =C8*(1-26.25%) -> 0
B9: Class 1 | C9: 0.004 | E9: 0.2625 | G9: 0.00295
B10: Class 2 | C10: 0.013 | E10: 0.2625 | G10: 0.0095875
B11: Class 3 | C11: 0.046 | E11: 0.2625 | G11: 0.033925
B12: Class 4 | C12: 0.1 | E12: 0.2625 | G12: 0.07375
B13: Class 5 | C13: 0.23 | E13: 0.2625 | G13: 0.169625
B14: Class 6 | C14: 0.3 | E14: 0.35 | G14: =C14*(1-35%) -> 0.195
B15: Mortgages
B16: Commercial Mortgages in Good Standing | C16: 0.0175 | E16: 0.2625 | G16: =C16*(1-26.25%) -> 0.01290625
B17: Commercial Mortgages more than 90 Days Overdue | C17: 0.18 | E17: 0.2625 | G17: =C17*(1-26.25%) -> 0.13275
B18: Commercial Mortgages in Foreclosure | C18: 0.23 | E18: 0.2625 | G18: =C18*(1-26.25%) -> 0.169625
B19: Preferred Stock (Unaffiliated)
B20: Class 1 | C20: 0.0004 | E20: 0.2625 | G20: =C20*(1-26.25%) -> 0.000295
B21: Class 2 | C21: 0.013 | E21: 0.2625 | G21: 0.0095875
B22: Class 3 | C22: 0.046 | E22: 0.2625 | G22: 0.033925
B23: Class 4 | C23: 0.1 | E23: 0.2625 | G23: 0.07375
B24: Class 5 | C24: 0.23 | E24: 0.2625 | G24: 0.169625
B25: Class 6 | C25: 0.3 | E25: 0.2625 | G25: 0.22125
B27: Common Stock (Unaffiliated) | C27: 0.3 | E27: 0.35 | G27: =C27*(1-35%) -> 0.195
B28: Real Estate | C28: 0.15 | E28: 0.35 | G28: =C28*(1-35%) -> 0.0975
B29: BA Assets | C29: 0.23 | E29: 0.35 | G29: =C29*(1-35%) -> 0.1495
B30: C-2 Insurance Risk
B31: First 500 million of Net Amount at Risk | C31: 0.0023 | E31: 0.35 | G31: =C31*(1-35%) -> 0.001495
B32: Next 4.5 billion of Net Amount at Risk | C32: 0.0015 | E32: 0.35 | G32: =C32*(1-35%) -> 0.000975
B33: Next 20 billion of Net Amount at Risk | C33: 0.0012 | E33: 0.35 | G33: =C33*(1-35%) -> 0.00078
B34: Over 25 billion of Net Amount at Risk | C34: 0.0009 | E34: 0.35 | G34: =C34*(1-35%) -> 0.000585
B35: C-3a Interest Rate Risk1
B36: Low Risk | C36: =ROUND(1.15%*2/3,4) -> 0.0077 | E36: 0.35 | G36: =C36*(1-35%) -> 0.005005
B37: Medium Risk | C37: 0.0154 | E37: 0.35 | G37: =C37*(1-35%) -> 0.01001
B38: High Risk | C38: 0.0308 | E38: 0.35 | G38: =C38*(1-35%) -> 0.02002
B39: C-4a Life Business Risk
B40: Life Premiums & Annuity Considerations | C40: 0.0308 | E40: 0.35 | G40: =C40*(1-35%) -> 0.02002
B41: Separate Account Liabilities | C41: 0.0008 | E41: 0.35 | G41: =C41*(1-35%) -> 0.00052
B45: 1. Assumes unqualified actual opinion based asset adequacy testing.
B46: 2. The pre-tax RBC Factors are used to facilitate comparison to the instructions published by the NAIC.

Sheet RBC Data
B2: Information
B3: for
B4: Calculation of Risk-Based Capital
B6: Bonds
B7: Class 1…………………………………………………………………………………………………………………………………… | C7: 10000000000
B8: Class 2…………………………………………………………………………………………………………………………………… | C8: 8000000000
B9: Class 3…………………………………………………………………………………………………………………………………… | C9: 1000000000
B10: Class 4…………………………………………………………………………………………………………………………………… | C10: 900000000
B11: Class 5…………………………………………………………………………………………………………………………………… | C11: 90000000
B12: Class 6…………………………………………………………………………………………………………………………………… | C12: 10000000
B13: Number of Bond Issuers…………………………………………………………………………………………………… | C13: 5000
B14: Mortgages
B15: Commercial Mortgages in Good Standing…………………………………………………………………………………………………… | C15: 900000000
B16: Commercial Mortgages more than 90 Days Overdue…………………………………………………………………………………………………… | C16: 90000000
B17: Commercial Mortgages in Foreclosure…………………………………………………………………………………………………… | C17: 10000000
B18: Preferred Stock (assumed to all belong to Class 2)…………………………………………………………………………………………………… | C18: 200000000
B19: Common Stock…………………………………………………………………………………………………………………………………… | C19: 1000000000
B20: Real Estate…………………………………………………………………………………………………………………………………… | C20: 100000000
B21: BA Assets…………………………………………………………………………………………………………………………………… | C21: 1000000000
B22: Policy Loans…………………………………………………………………………………………………………………………………… | C22: 5000000000
B23: Ordinary Life Insurance Inforce…………………………………………………………………………………………………… | C23: 200000000000
B24: Aggregate Reserves
B25: Ordinary Life…………………………………………………………………………………………………………………………………… | C25: 20000000000
B26: Annuity Contracts with Market Value Adjustment…………………………………………………………………………………………………… | C26: 5000000000
B27: Annuity Contracts with Book Value Withdrawals less a Surrender of 5% or Higher…………………………………………………………………………………………………… | C27: 7000000000
B28: Annuity Contracts with Book Value Withdrawals less a Surrender of less than 5%…………………………………………………………………………………………………… | C28: 5000000000
B29: Annuity Contracts with Book Value Withdrawals and No Surrender Charge…………………………………………………………………………………………………… | C29: 3000000000
B30: Life Contingent Payout Annuities…………………………………………………………………………………………………… | C30: 1000000000
B31: Supplementary Contracts with Life Contingencies…………………………………………………………………………………………………… | C31: 100000000
B32: Supplementary Contracts without Life Contingencies…………………………………………………………………………………………………… | C32: 100000000
B33: Dividend Accumulations…………………………………………………………………………………………………… | C33: 200000000
B34: Life Premiums & Annuity Considerations…………………………………………………………………………………………………… | C34: 2500000000
B35: Separate Account Liabilities…………………………………………………………………………………………………… | C35: 25000000000
B36: Statutory Surplus…………………………………………………………………………………………………………………………………… | C36: 2000000000
B37: Asset Valuation Reserve (AVR)…………………………………………………………………………………………………… | C37: 500000000
B38: Policyholder Dividend Liability………………………………………………………………………………….……………………………… | C38: 750000000

Sheet Risk-Based Capital Ratio
C2: Risk-Based Capital Ratio
C6: Asset Risk (C-1) | D6: ='Asset Risk (C-1)'!E35 -> 870726200
B7: + | C7: Insurance Risk (C-2) | D7: ='Insurance Risk (C-2) '!E16 -> 171400000
B8: + | C8: Interest Rate Risk, Health Risk and Market Risk (C-3) | D8: ='Interest Rate Risk (C-3)'!E25 -> 521290000
B9: + | C9: Business Risk (C-4) | D9: ='Business Risk (C-4)'!E9 -> 97000000
B10: = | C10: Total Risk-Based Capital before Covariance Adjustment | D10: =SUM(D6:D9) -> 1660416200
B11: - | C11: Covariance adjustment (see covariance adjustment worksheet) | D11: ='Covariance Adjustment'!D20 -> 418044059.1
B12: = | C12: Total Risk-Based Capital After Covariance Adjustment | D12: =D6+D7+D8+D9-D11 -> 1242372141
C13: Authorized Control Level Risked-Based Capital1 | D13: =0.5*D12 -> 621186070.4
C14: Total Adjusted Capital | D14: ='Total Adjusted Capital'!E10 -> 2875000000
C15: Risk-Based Capital Ratio (Total Adjusted Capital/Total Risked-Based Capital) | D15: =D14/D13 -> 4.628242868
C17: Footnotes:
C18: 1. 50% of Total Risk-Based Capital after Covariance Adjustment

Sheet Asset Risk (C-1)
B2: Asset Risk (C-1)
C4: -1 | D4: =C4-1 -> -2 | E4: =D4-1 -> -3
B5: Assets Type | C5: Annual Statement Value | D5: RBC Factor | E5: RBC Requirement
B6: Bonds
B7: Government and exempt issuers | C7: 0 | D7: ='RBC Factors'!C8 -> 0 | E7: =C7*D7 -> 0
B8: Class 1 | C8: ='RBC Data'!C7 -> 10000000000 | D8: ='RBC Factors'!C9 -> 0.004 | E8: 40000000
B9: Class 2 | C9: ='RBC Data'!C8 -> 8000000000 | D9: ='RBC Factors'!C10 -> 0.013 | E9: 104000000
B10: Class 3 | C10: ='RBC Data'!C9 -> 1000000000 | D10: ='RBC Factors'!C11 -> 0.046 | E10: 46000000
B11: Class 4 | C11: ='RBC Data'!C10 -> 900000000 | D11: ='RBC Factors'!C12 -> 0.1 | E11: 90000000
B12: Class 5 | C12: ='RBC Data'!C11 -> 90000000 | D12: ='RBC Factors'!C13 -> 0.23 | E12: 20700000
B13: Class 6 | C13: ='RBC Data'!C12 -> 10000000 | D13: ='RBC Factors'!C14 -> 0.3 | E13: 3000000
B14: RBC for Bonds before bond size adjustment | E14: =SUM(E7:E13) -> 303700000
B15: Bonds Size Adjustment (see Bond Size worksheet) | E15: ='Bond Size Factor'!E12 -> 0.926
B16: Total RBC for Bonds | E16: =E14*E15 -> 281226200
B18: Mortgages
B19: Commercial Mortgages in Good Standing | C19: ='RBC Data'!C15 -> 900000000 | D19: ='RBC Factors'!C16 -> 0.0175 | E19: =C19*D19 -> 15750000
B20: Commercial Mortgages more than 90 days overdue | C20: ='RBC Data'!C16 -> 90000000 | D20: ='RBC Factors'!C17 -> 0.18 | E20: =C20*D20 -> 16200000
B21: Commercial Mortgages in foreclosure | C21: ='RBC Data'!C17 -> 10000000 | D21: ='RBC Factors'!C18 -> 0.23 | E21: =C21*D21 -> 2300000
B22: Total RBC for Mortgages | E22: =SUM(E19:E21) -> 34250000
B23: Preferred Stock
B24: Class 1 | C24: 0 | D24: ='RBC Factors'!C20 -> 0.0004 | E24: =C24*D24 -> 0
B25: Class 2 | C25: ='RBC Data'!C18 -> 200000000 | D25: ='RBC Factors'!C21 -> 0.013 | E25: 2600000
B26: Class 3 | C26: 0 | D26: ='RBC Factors'!C22 -> 0.046 | E26: 0
B27: Class 4 | C27: 0 | D27: ='RBC Factors'!C23 -> 0.1 | E27: 0
B28: Class 5 | C28: 0 | D28: ='RBC Factors'!C24 -> 0.23 | E28: 0
B29: Class 6 | C29: 0 | D29: ='RBC Factors'!C25 -> 0.3 | E29: 0
B30: Total RBC for Preferred Stock | E30: =SUM(E24:E29) -> 2600000
B31: Common Stock | C31: ='RBC Data'!C19 -> 1000000000 | D31: ='RBC Factors'!C27 -> 0.3 | E31: =C31*D31 -> 300000000
B32: Real Estate | C32: ='RBC Data'!C20 -> 100000000 | D32: ='RBC Factors'!C28 -> 0.15 | E32: =C32*D32 -> 15000000
B33: BA Assets | C33: ='RBC Data'!C21 -> 1000000000 | D33: ='RBC Factors'!C29 -> 0.23 | E33: =C33*D33 -> 230000000
B34: Asset Concentration Factor (see Concentration worksheet) | E34: ='Asset Concentration Factor'!F16 -> 7650000
B35: Total Asset Risk (C-1) | E35: =E16+E22+E30+E31+E32+E33+E34 -> 870726200

Sheet Insurance Risk (C-2)
B2: Insurance Risk (C-2)
C4: -1 | D4: =C4-1 -> -2 | E4: =D4-1 -> -3
B5: Assets Type | C5: Annual Statement Value | D5: RBC Factor | E5: RBC Requirement
B6: Individual Life Insurance
B7: Ordinary Life Insurance Inforce (from Exhibit of Life Insurance) | C7: ='RBC Data'!C23 -> 200000000000
B8: less Aggregate Reserve for Ordinary Life | C8: ='RBC Data'!C25 -> 20000000000
B9: Total Net Amount at Risk | C9: =C7-C8 -> 180000000000
B10: First 500 million | C10: =MIN(500000000,C9) -> 500000000 | D10: ='RBC Factors'!C31 -> 0.0023 | E10: =C10*D10 -> 1150000
B11: Next 4,500 million | C11: =MAX(0,MIN(4500000000,C9-C10)) -> 4500000000 | D11: ='RBC Factors'!C32 -> 0.0015 | E11: =C11*D11 -> 6750000
B12: Next 20,000 million | C12: =MAX(0,MIN(20000000000,C9-C10-C11)) -> 20000000000 | D12: ='RBC Factors'!C33 -> 0.0012 | E12: =C12*D12 -> 24000000
B13: Over 25,000 million | C13: =MAX(0,C9-C10-C11-C12) -> 155000000000 | D13: ='RBC Factors'!C34 -> 0.0009 | E13: =C13*D13 -> 139500000
B14: Total RBC for Individual Life Insurance | E14: =SUM(E10:E13) -> 171400000
B15: RBC for other insurance risks | E15: 0
B16: Total Insurance Risk (C-2) | E16: =E14+E15 -> 171400000

Sheet Interest Rate Risk (C-3)
B2: Interest Rate Risk, Health Risk and Market Risk (C-3)
C4: -1 | D4: =C4-1 -> -2 | E4: =D4-1 -> -3
B5: Assets Type | C5: Annual Statement Value | D5: RBC Factor | E5: RBC Requirement
B6: Low Risk
B7: Life insurance reserves net of policy loans | C7: ='RBC Data'!C25-'RBC Data'!C22 -> 15000000000 | D7: ='RBC Factors'!$C$36 -> 0.0077 | E7: =C7*D7 -> 115500000
B8: Reserve for annuity contracts with no withdrawal feature | C8: 0 | D8: ='RBC Factors'!$C$36 -> 0.0077 | E8: =C8*D8 -> 0
B9: Reserve for annuity contracts with market value adjustment | C9: ='RBC Data'!C26 -> 5000000000 | D9: ='RBC Factors'!$C$36 -> 0.0077 | E9: =C9*D9 -> 38500000
B10: Reserve for life contingent payout annuities | C10: ='RBC Data'!C30 -> 1000000000 | D10: ='RBC Factors'!$C$36 -> 0.0077 | E10: =C10*D10 -> 7700000
B11: Reserve for supplementary contracts with life contingencies | C11: ='RBC Data'!C31 -> 100000000 | D11: ='RBC Factors'!$C$36 -> 0.0077 | E11: =C11*D11 -> 770000
B12: Total RBC for Low Risk | E12: =SUM(E7:E11) -> 162470000
B13: Medium Risk
B14: Reserve for annuity contracts with book value withdrawals less a surrender charge of 5% or higher | C14: ='RBC Data'!C27 -> 7000000000 | D14: ='RBC Factors'!$C$37 -> 0.0154 | E14: =C14*D14 -> 107800000
B15: Reserve for structure settlements | C15: 0 | D15: ='RBC Factors'!$C$37 -> 0.0154 | E15: =C15*D15 -> 0
B16: Reserve for supplementary contracts without life contingencies | C16: ='RBC Data'!C32 -> 100000000 | D16: ='RBC Factors'!$C$37 -> 0.0154 | E16: =C16*D16 -> 1540000
B17: Reserve for dividend accumulations | C17: ='RBC Data'!C33 -> 200000000 | D17: ='RBC Factors'!$C$37 -> 0.0154 | E17: =C17*D17 -> 3080000
B18: Additional reserves established as a result of cash flow testing | C18: 0 | D18: ='RBC Factors'!$C$37 -> 0.0154 | E18: =C18*D18 -> 0
B19: Total RBC for Medium Risk | E19: =SUM(E14:E18) -> 112420000
B20: High Risk
B21: Reserve for annuity contracts with book value withdrawals less a surrender of less than 5% | C21: ='RBC Data'!C28 -> 5000000000 | D21: ='RBC Factors'!$C$38 -> 0.0308 | E21: =C21*D21 -> 154000000
B22: Reserve for annuity contracts with book value withdrawals less a surrender charge of less than 5% | C22: ='RBC Data'!C29 -> 3000000000 | D22: ='RBC Factors'!$C$38 -> 0.0308 | E22: =C22*D22 -> 92400000
B23: Total RBC for High Risk | E23: =SUM(E21:E22) -> 246400000
B24: Additional RBC as the result of Cash Flow Testing | E24: 0
B25: Total Interest Rate Risk, Health Risk and Market Risk (C-3) | E25: =E12+E19+E23+E24 -> 521290000

Sheet Business Risk (C-4)
B2: Business Risk (C-4)
C4: -1 | D4: =C4-1 -> -2 | E4: =D4-1 -> -3
B5: Assets Type | C5: Annual Statement Value | D5: RBC Factor | E5: RBC Requirement
B7: Life premiums & Annuity Considerations | C7: ='RBC Data'!C34 -> 2500000000 | D7: ='RBC Factors'!C40 -> 0.0308 | E7: =C7*D7 -> 77000000
B8: Separate Account Liabilities | C8: ='RBC Data'!C35 -> 25000000000 | D8: ='RBC Factors'!C41 -> 0.0008 | E8: =C8*D8 -> 20000000
B9: Total Business Risk (C-4) | E9: =SUM(E7:E8) -> 97000000

Sheet Bond Size Factor
B2: Bond Size Factor
C4: -1 | D4: =C4-1 -> -2 | E4: =D4-1 -> -3
C5: Number of Issuers | D5: * Size Factor | E5: = Weighted Issuers
B6: First 50 | C6: =MIN(50,$C$10) -> 50 | D6: 2.5 | E6: =C6*D6 -> 125
B7: Next 50 | C7: =MAX(0,MIN(50,$C$10-$C$6)) -> 50 | D7: 1.3 | E7: =C7*D7 -> 65
B8: Next 300 | C8: =MAX(0,MIN(300,$C$10-$C$6-$C$7)) -> 300 | D8: 1 | E8: =C8*D8 -> 300
B9: Over 400 | C9: =MAX(0,$C$10-$C$6-$C$7-$C$8) -> 4600 | D9: 0.9 | E9: =C9*D9 -> 4140
B10: Total Number of Issuers* | C10: ='RBC Data'!C13 -> 5000
B11: Total Weighted Issuers | E11: =SUM(E6:E10) -> 4630
B12: Size Factor | E12: =E11/C10 -> 0.926
B14: * Excludes government issues

Sheet Asset Concentration Factor
B2: Asset Concentration Factor
D4: -1 | E4: =D4-1 -> -2 | F4: =E4-1 -> -3
B5: 10 largest Holdings | C5: Asset Class | D5: Annual Statement Value | E5: * RBC Factor | F5: = Additional RBC
B6: First | C6: Bond (Class 2) | D6: 25000000 | E6: 0.013 | F6: =D6*E6 -> 325000
B7: Second | C7: Bond (Class 2) | D7: 25000000 | E7: 0.013 | F7: =D7*E7 -> 325000
B8: Third | C8: Bond (Class 2) | D8: 25000000 | E8: 0.013 | F8: 325000
B9: Fourth | C9: Bond (Class 3) | D9: 25000000 | E9: 0.046 | F9: 1150000
B10: Fifth | C10: Bond (Class 3) | D10: 25000000 | E10: 0.046 | F10: 1150000
B11: Sixth | C11: Mortgage (in good standing) | D11: 50000000 | E11: 0.0175 | F11: 875000
B12: Seventh | C12: Mortgage (in good standing) | D12: 50000000 | E12: 0.0175 | F12: 875000
B13: Eighth | C13: Mortgage (in good standing) | D13: 50000000 | E13: 0.0175 | F13: 875000
B14: Ninth | C14: Mortgage (in good standing) | D14: 50000000 | E14: 0.0175 | F14: 875000
B15: Tenth | C15: Mortgage (in good standing) | D15: 50000000 | E15: 0.0175 | F15: 875000
F16: =SUM(F6:F15) -> 7650000

Sheet Covariance Adjustment
C2: Covariance Adjustment Worksheet
D5: RBC Requirement
C6: Asset Risk - Affiliates (C-0) | D6: 0
B7: + | C7: Asset Risk - Other (C-1)
C8: Common Stock | D8: ='Asset Risk (C-1)'!E31 -> 300000000
C9: Other Assets | D9: ='Asset Risk (C-1)'!E35-'Asset Risk (C-1)'!E31 -> 570726200
B10: + | C10: Insurance Risk (C-2) | D10: ='Insurance Risk (C-2) '!E16 -> 171400000
B11: + | C11: Interest Rate Risk, Health Risk and Market Risk (C-3)
C12: Interest Rate Risk | D12: ='Interest Rate Risk (C-3)'!E25 -> 521290000
C13: Health Risk | D13: 0
C14: Market Risk | D14: 0
B15: + | C15: Business Risk (C-4)
C16: Non Health Portion | D16: ='Business Risk (C-4)'!E9 -> 97000000
C17: Health Portion | D17: ='Business Risk (C-4)'!E10 -> 0
B18: = | C18: Total Risk-based Capital before Covariance Adjustment | D18: =SUM(D6:D16) -> 1660416200
B19: - | C19: Total Risk-based Capital after Covariance Adjustment | D19: =D6+D16+((D9+D12)^2 +(D8+D14)^2+D10^2+D14^2+D17^2)^0.5 -> 1242372141
B20: = | C20: Covariance adjustment | D20: =D18-D19 -> 418044059.1

Sheet Total Adjusted Capital
B2: Total Adjusted Capital
C4: -1 | D4: =C4-1 -> -2 | E4: =D4-1 -> -3
B5: Assets Type | C5: Annual Statement Value | D5: RBC Factor | E5: RBC Requirement
B7: Statutory Surplus | C7: ='RBC Data'!C36 -> 2000000000 | D7: 1 | E7: =C7*D7 -> 2000000000
B8: Asset Valuation Reserve (AVR) | C8: ='RBC Data'!C37 -> 500000000 | D8: 1 | E8: =C8*D8 -> 500000000
B9: Policyholder Dividend Liability | C9: ='RBC Data'!C38 -> 750000000 | D9: 0.5 | E9: =C9*D9 -> 375000000
B10: Total Adjusted Capital | E10: =SUM(E7:E9) -> 2875000000
